[Event "IV Elllobregat Open Chess Tmnt"]
[Site "Sant Boi de Llobregat, Spain"]
[Date "2023.11.30"]
[Round "1.46"]
[White "Vaishali, Rameshbabu"]
[Black "Jacobsen, Mikkel Manosri"]
[Result "1-0"]
[TimeControl "90min/40moves + 15min/end + 30sec from move 1"]
[WhiteFideId "5091756"]
[BlackFideId "1444514"]
[WhiteElo "2467"]
[BlackElo "2261"]

1. e4 {[%clk 01:30:26]} {[%emt 00:00:33]} c5 {[%clk 01:30:48]} {[%emt
00:00:13]} 2. Nf3 {[%clk 01:30:49]} {[%emt 00:00:07]} Nc6 {[%clk 01:31:11]}
{[%emt 00:00:07]} 3. Bb5 {[%clk 01:31:06]} {[%emt 00:00:14]} Nf6 {[%clk
01:31:27]} {[%emt 00:00:13]} 4. e5 {[%clk 01:30:56]} {[%emt 00:00:40]} Nd5
{[%clk 01:31:38]} {[%emt 00:00:19]} 5. Nc3 {[%clk 01:31:11]} {[%emt 00:00:15]}
Nc7 {[%clk 01:31:47]} {[%emt 00:00:21]} 6. Bxc6 {[%clk 01:31:15]} {[%emt
00:00:27]} dxc6 {[%clk 01:32:10]} {[%emt 00:00:07]} 7. h3 {[%clk 01:29:22]}
{[%emt 00:02:22]} g6 {[%clk 01:31:49]} {[%emt 00:00:51]} 8. d3 {[%clk
01:28:38]} {[%emt 00:01:14]} Bg7 {[%clk 01:31:30]} {[%emt 00:00:48]} 9. O-O
{[%clk 01:24:33]} {[%emt 00:04:36]} O-O {[%clk 01:31:00]} {[%emt 00:01:00]} 10.
Re1 {[%clk 01:18:41]} {[%emt 00:06:22]} Ne6 {[%clk 01:30:48]} {[%emt 00:00:42]}
11. Ne4 {[%clk 01:15:00]} {[%emt 00:04:11]} b6 {[%clk 01:26:55]} {[%emt
00:04:22]} 12. Ng3 {[%clk 01:07:14]} {[%emt 00:08:17]} Nd4 {[%clk 01:20:34]}
{[%emt 00:06:51]} 13. Bf4 {[%clk 01:03:20]} {[%emt 00:04:23]} Qd5 {[%clk
01:17:00]} {[%emt 00:04:04]} 14. Re4 {[%clk 00:54:23]} {[%emt 00:09:28]} Be6
{[%clk 01:09:32]} {[%emt 00:07:58]} 15. Nxd4 {[%clk 00:39:56]} {[%emt
00:14:58]} cxd4 {[%clk 01:09:55]} {[%emt 00:00:06]} 16. Qd2 {[%clk 00:40:23]}
{[%emt 00:00:03]} Rfe8 {[%clk 01:06:38]} {[%emt 00:03:47]} 17. b3 {[%clk
00:38:59]} {[%emt 00:01:54]} a5 {[%clk 01:00:52]} {[%emt 00:06:16]} 18. Rae1
{[%clk 00:34:47]} {[%emt 00:04:42]} a4 {[%clk 00:56:25]} {[%emt 00:04:56]} 19.
Bh6 {[%clk 00:33:54]} {[%emt 00:01:24]} Bh8 {[%clk 00:55:08]} {[%emt 00:01:47]}
20. f4 {[%clk 00:24:46]} {[%emt 00:09:38]} axb3 {[%clk 00:52:12]} {[%emt
00:03:26]} 21. axb3 {[%clk 00:25:04]} {[%emt 00:00:12]} f5 {[%clk 00:39:45]}
{[%emt 00:12:56]} 22. exf6 {[%clk 00:23:48]} {[%emt 00:01:47]} exf6 {[%clk
00:40:12]} {[%emt 00:00:03]} 23. Qe2 {[%clk 00:19:25]} {[%emt 00:04:53]} Kf7
{[%clk 00:29:34]} {[%emt 00:11:08]} 24. f5 {[%clk 00:18:42]} {[%emt 00:01:13]}
Bd7 {[%clk 00:29:48]} {[%emt 00:00:16]} 25. Re7+ {[%clk 00:17:21]} {[%emt
00:01:50]} Kg8 {[%clk 00:28:14]} {[%emt 00:02:04]} 26. Rxe8+ {[%clk 00:14:53]}
{[%emt 00:02:59]} Rxe8 {[%clk 00:28:38]} {[%emt 00:00:06]} 27. Qxe8+ {[%clk
00:15:15]} Bxe8 {[%clk 00:29:03]} {[%emt 00:00:13]} 28. Rxe8+ {[%clk 00:15:41]}
{[%emt 00:00:04]} Kf7 {[%clk 00:29:26]} {[%emt 00:00:06]} 29. Rf8+ {[%clk
00:11:51]} {[%emt 00:04:20]} Ke7 {[%clk 00:29:54]} {[%emt 00:00:03]} 30. Rxh8
{[%clk 00:12:15]} {[%emt 00:00:05]} Qe5 {[%clk 00:29:31]} {[%emt 00:00:53]} 31.
Rxh7+ {[%clk 00:10:35]} {[%emt 00:02:11]} Ke8 {[%clk 00:29:40]} {[%emt
00:00:21]} 32. Rh8+ {[%clk 00:07:18]} {[%emt 00:03:46]} Kd7 {[%clk 00:30:08]}
{[%emt 00:00:03]} 33. Rh7+ {[%clk 00:03:35]} {[%emt 00:04:14]} Ke8 {[%clk
00:29:49]} {[%emt 00:00:48]} 34. Rh8+ {[%clk 00:04:02]} {[%emt 00:00:03]} Kd7
{[%clk 00:30:13]} {[%emt 00:00:06]} 35. Kf2 {[%clk 00:00:48]} {[%emt 00:03:44]}
g5 {[%clk 00:30:30]} {[%emt 00:00:12]} 36. Ne4 {[%clk 00:00:53]} {[%emt
00:00:26]} Qxf5+ {[%clk 00:30:09]} {[%emt 00:00:51]} 37. Kg1 {[%clk 00:01:21]}
{[%emt 00:00:02]} Qf4 {[%clk 00:29:54]} {[%emt 00:00:45]} 38. Rf8 {[%clk
00:00:56]} {[%emt 00:00:54]} Qc1+ {[%clk 00:23:30]} {[%emt 00:06:54]} 39. Kh2
{[%clk 00:01:24]} {[%emt 00:00:02]} Qf4+ {[%clk 00:23:54]} {[%emt 00:00:07]} 40.
Kg1 {[%clk 00:16:40]} {[%emt 00:00:14]} Qc1+ {[%clk 00:38:42]} {[%emt
00:00:42]} 41. Kh2 {[%clk 00:17:08]} {[%emt 00:00:02]} Qf4+ {[%clk 00:38:56]}
{[%emt 00:00:16]} 42. Ng3 {[%clk 00:06:23]} {[%emt 00:11:15]} Qd6 {[%clk
00:30:38]} {[%emt 00:08:48]} 43. Bg7 {[%clk 00:04:28]} {[%emt 00:02:25]} Qe7
{[%clk 00:30:37]} {[%emt 00:00:31]} 44. Ra8 {[%clk 00:04:30]} {[%emt 00:00:28]}
Qe5 {[%clk 00:26:31]} {[%emt 00:04:35]} 45. Ra1 {[%clk 00:03:54]} {[%emt
00:01:07]} Qc5 {[%clk 00:22:46]} {[%emt 00:04:15]} 46. Bxf6 {[%clk 00:01:35]}
{[%emt 00:02:49]} Qxc2 {[%clk 00:23:13]} {[%emt 00:00:03]} 47. Ra7+ {[%clk
00:01:55]} {[%emt 00:00:10]} Ke6 {[%emt 00:02:29]} 48. Ne4 {[%clk 00:01:08]}
Qxd3 {[%clk 00:21:34]} {[%emt 00:01:27]} 49. Re7+ {[%clk 00:01:17]} {[%emt
00:00:21]} Kd5 {[%clk 00:21:59]} {[%emt 00:00:05]} 50. Re5# {[%clk 00:01:43]}
{[%emt 00:00:04]} 1-0

[Event "IV Elllobregat Open Chess Tmnt"]
[Site "Sant Boi de Llobregat, Spain"]
[Date "2023.11.30"]
[Round "1.47"]
[White "Chitre, Arush"]
[Black "Fernandez Guillen, Ernesto J."]
[Result "0-1"]
[TimeControl "90min/40moves + 15min/end + 30sec from move 1"]
[WhiteFideId "25959026"]
[BlackFideId "3512428"]
[WhiteElo "2258"]
[BlackElo "2462"]

1. d4 {[%clk 01:30:51]} {[%emt 00:00:07]} Nf6 {[%clk 01:25:34]} {[%emt
00:05:27]} 2. Bf4 {[%clk 01:30:40]} {[%emt 00:00:41]} g6 {[%clk 01:23:20]}
{[%emt 00:02:44]} 3. Nc3 {[%clk 01:30:18]} {[%emt 00:00:52]} Bg7 {[%clk
01:19:17]} {[%emt 00:04:33]} 4. e4 {[%clk 01:29:52]} {[%emt 00:00:55]} d6
{[%clk 01:19:43]} {[%emt 00:00:05]} 5. Qd2 {[%clk 01:30:02]} {[%emt 00:00:19]}
c6 {[%clk 01:17:47]} {[%emt 00:02:26]} 6. Bh6 {[%clk 01:29:57]} {[%emt
00:00:35]} Bxh6 {[%clk 01:17:11]} {[%emt 00:01:06]} 7. Qxh6 {[%clk 01:30:17]}
{[%emt 00:00:10]} Qa5 {[%clk 01:13:21]} {[%emt 00:04:20]} 8. f3 {[%clk
01:11:50]} {[%emt 00:18:58]} Nbd7 {[%clk 01:06:30]} {[%emt 00:07:21]} 9. Qd2
{[%clk 00:47:35]} {[%emt 00:24:44]} b5 {[%clk 01:00:04]} {[%emt 00:06:57]} 10.
Nce2 {[%clk 00:34:24]} {[%emt 00:13:41]} Qxd2+ {[%clk 00:57:52]} {[%emt
00:02:41]} 11. Kxd2 {[%clk 00:34:51]} {[%emt 00:00:04]} Nb6 {[%clk 00:57:40]}
{[%emt 00:00:42]} 12. Ng3 {[%clk 00:31:28]} {[%emt 00:03:52]} a6 {[%clk
00:54:18]} {[%emt 00:03:53]} 13. c3 {[%clk 00:30:45]} {[%emt 00:01:13]} e5
{[%clk 00:47:54]} {[%emt 00:06:53]} 14. Bd3 {[%clk 00:30:07]} {[%emt 00:01:08]}
h5 {[%clk 00:43:26]} {[%emt 00:04:58]} 15. N1e2 {[%clk 00:28:14]} {[%emt
00:02:24]} h4 {[%clk 00:40:59]} {[%emt 00:02:57]} 16. Nf1 {[%clk 00:28:36]}
{[%emt 00:00:07]} Ke7 {[%clk 00:39:14]} {[%emt 00:02:14]} 17. Ne3 {[%clk
00:28:10]} {[%emt 00:00:56]} Bb7 {[%clk 00:37:46]} {[%emt 00:01:59]} 18. b3
{[%clk 00:27:50]} {[%emt 00:00:50]} Rad8 {[%clk 00:32:56]} {[%emt 00:05:20]} 19.
Kc2 {[%clk 00:25:01]} {[%emt 00:03:19]} Rc8 {[%clk 00:18:47]} {[%emt 00:14:39]}
20. Kb2 {[%clk 00:22:16]} {[%emt 00:03:15]} exd4 {[%clk 00:13:28]} {[%emt
00:05:49]} 21. cxd4 {[%clk 00:21:28]} {[%emt 00:01:18]} c5 {[%clk 00:13:42]}
{[%emt 00:00:16]} 22. Rac1 {[%clk 00:21:08]} {[%emt 00:00:50]} Nbd7 {[%clk
00:10:26]} {[%emt 00:03:46]} 23. Rhd1 {[%clk 00:18:27]} {[%emt 00:03:11]} Rhd8
{[%clk 00:07:23]} {[%emt 00:03:33]} 24. Bb1 {[%clk 00:15:45]} {[%emt 00:03:12]}
cxd4 {[%clk 00:06:03]} {[%emt 00:01:50]} 25. Nxd4 {[%clk 00:16:07]} {[%emt
00:00:08]} h3 {[%clk 00:04:32]} {[%emt 00:02:01]} 26. g3 {[%clk 00:15:47]}
{[%emt 00:00:50]} Ne5 {[%clk 00:03:32]} {[%emt 00:01:30]} 27. Bd3 {[%clk
00:13:42]} {[%emt 00:02:34]} Rxc1 {[%clk 00:03:07]} {[%emt 00:00:55]} 28. Kxc1
{[%clk 00:14:08]} {[%emt 00:00:05]} d5 {[%clk 00:01:53]} {[%emt 00:01:44]} 29.
exd5 {[%clk 00:14:15]} {[%emt 00:00:23]} Nxd5 {[%clk 00:01:22]} {[%emt
00:01:02]} 30. Nxd5+ {[%clk 00:13:51]} {[%emt 00:00:53]} Rxd5 {[%clk 00:00:51]}
{[%emt 00:01:02]} 31. Be2 {[%clk 00:13:36]} {[%emt 00:00:44]} Rc5+ {[%clk
00:00:44]} {[%emt 00:00:37]} 32. Kd2 {[%clk 00:13:01]} {[%emt 00:01:05]} b4
{[%clk 00:00:39]} {[%emt 00:00:35]} 33. f4 {[%clk 00:12:55]} {[%emt 00:00:36]}
Nd7 {[%clk 00:00:44]} {[%emt 00:00:25]} 34. Rc1 {[%clk 00:10:24]} {[%emt
00:03:01]} Rxc1 {[%clk 00:00:36]} {[%emt 00:00:38]} 35. Kxc1 {[%emt 00:00:04]}
Nf6 {[%clk 00:00:54]} {[%emt 00:00:10]} 36. Bf3 {[%clk 00:08:07]} {[%emt
00:03:15]} Bxf3 {[%clk 00:00:48]} {[%emt 00:00:36]} 37. Nxf3 {[%emt 00:00:25]}
Ne4 {[%clk 00:00:55]} 38. Kc2 {[%clk 00:08:59]} {[%emt 00:00:06]} Ke6 {[%clk
00:00:43]} {[%emt 00:00:43]} 39. Kd3 {[%clk 00:08:07]} {[%emt 00:01:21]} Kd5
{[%clk 00:00:39]} {[%emt 00:00:34]} 40. Kc2 {[%clk 00:21:47]} {[%emt 00:01:50]}
f6 {[%clk 00:15:38]} {[%emt 00:00:32]} 41. Kd3 {[%clk 00:21:25]} {[%emt
00:00:51]} a5 {[%clk 00:14:53]} {[%emt 00:01:15]} 42. Kc2 {[%clk 00:19:35]}
{[%emt 00:02:20]} Nxg3 {[%clk 00:13:05]} {[%emt 00:02:19]} 43. Kd3 {[%clk
00:12:29]} {[%emt 00:07:35]} Ne4 {[%clk 00:11:41]} {[%emt 00:01:54]} 44. Ng1
{[%clk 00:12:49]} {[%emt 00:00:10]} Nf2+ {[%clk 00:10:15]} {[%emt 00:01:56]} 45.
Ke2 {[%clk 00:12:42]} {[%emt 00:00:36]} Ng4 {[%clk 00:10:29]} {[%emt 00:00:16]}
46. Kd3 {[%clk 00:13:03]} {[%emt 00:00:10]} Nxh2 {[%clk 00:10:09]} {[%emt
00:00:50]} 47. Nxh3 {[%clk 00:13:27]} {[%emt 00:00:06]} Ng4 {[%clk 00:10:00]}
{[%emt 00:00:38]} 48. Ng1 {[%clk 00:13:51]} {[%emt 00:00:07]} Nf2+ {[%clk
00:10:14]} {[%emt 00:00:16]} 49. Ke3 {[%clk 00:14:03]} {[%emt 00:00:19]} Ne4
{[%clk 00:10:35]} {[%emt 00:00:09]} 50. Kd3 {[%clk 00:14:18]} {[%emt 00:00:14]}
g5 {[%clk 00:09:51]} {[%emt 00:01:14]} 51. fxg5 {[%clk 00:14:08]} {[%emt
00:00:39]} fxg5 {[%clk 00:09:58]} {[%emt 00:00:23]} 52. Nh3 {[%clk 00:14:06]}
{[%emt 00:00:33]} Ke5 {[%clk 00:07:58]} {[%emt 00:02:30]} 53. Kc4 {[%clk
00:13:22]} {[%emt 00:01:14]} g4 {[%clk 00:06:54]} {[%emt 00:01:34]} 54. Ng1
{[%clk 00:13:44]} {[%emt 00:00:08]} Kf4 {[%clk 00:06:23]} {[%emt 00:01:01]} 55.
Ne2 {[%clk 00:13:26]} {[%emt 00:00:48]} Ke3 {[%clk 00:02:52]} {[%emt 00:04:00]}
56. Nd4 {[%clk 00:13:50]} {[%emt 00:00:07]} g3 {[%clk 00:03:02]} {[%emt
00:00:20]} 57. Nf5+ {[%clk 00:13:51]} {[%emt 00:00:29]} Kf2 {[%clk 00:03:27]}
{[%emt 00:00:05]} 58. Nxg3 {[%clk 00:12:39]} {[%emt 00:01:41]} Kxg3 {[%clk
00:03:55]} {[%emt 00:00:02]} 59. Kd3 {[%clk 00:10:44]} {[%emt 00:02:26]} Kf3
{[%clk 00:04:15]} {[%emt 00:00:11]} 60. a3 {[%clk 00:11:10]} {[%emt 00:00:04]}
bxa3 {[%emt 00:01:35]} 0-1

[Event "IV Elllobregat Open Chess Tmnt"]
[Site "Sant Boi de Llobregat, Spain"]
[Date "2023.11.30"]
[Round "1.48"]
[White "Garcia Ramos, Daniel"]
[Black "Birkisson, Bardur Orn"]
[Result "1-0"]
[TimeControl "90min/40moves + 15min/end + 30sec from move 1"]
[WhiteFideId "32010311"]
[BlackFideId "2310597"]
[WhiteElo "2461"]
[BlackElo "2254"]

1. e4 {[%clk 01:30:51]} {[%emt 00:00:08]} c5 {[%clk 01:30:45]} {[%emt
00:00:15]} 2. Nf3 {[%clk 01:31:13]} {[%emt 00:00:08]} e6 {[%clk 01:31:03]}
{[%emt 00:00:13]} 3. d4 {[%clk 01:31:36]} {[%emt 00:00:07]} cxd4 {[%clk
01:31:24]} {[%emt 00:00:09]} 4. Nxd4 {[%clk 01:31:58]} {[%emt 00:00:08]} Nc6
{[%clk 01:31:39]} {[%emt 00:00:15]} 5. Nc3 {[%clk 01:32:07]} {[%emt 00:00:20]}
Qc7 {[%clk 01:31:50]} {[%emt 00:00:19]} 6. Be3 {[%clk 01:32:27]} {[%emt
00:00:10]} a6 {[%clk 01:31:58]} {[%emt 00:00:22]} 7. a3 {[%clk 01:32:50]}
{[%emt 00:00:08]} b5 {[%clk 01:31:26]} {[%emt 00:01:02]} 8. Nxc6 {[%clk
01:33:11]} {[%emt 00:00:09]} Qxc6 {[%clk 01:31:44]} {[%emt 00:00:12]} 9. Be2
{[%clk 01:33:34]} {[%emt 00:00:07]} Bb7 {[%clk 01:31:41]} {[%emt 00:00:33]} 10.
O-O {[%clk 01:33:52]} {[%emt 00:00:11]} Rc8 {[%clk 01:29:24]} {[%emt 00:02:48]}
11. Qd3 {[%clk 01:33:12]} {[%emt 00:01:09]} Qc7 {[%clk 01:22:00]} {[%emt
00:07:54]} 12. Rfd1 {[%clk 01:31:33]} {[%emt 00:02:09]} Nf6 {[%clk 01:08:13]}
{[%emt 00:14:18]} 13. Bd4 {[%clk 01:28:12]} {[%emt 00:03:52]} d5 {[%clk
00:44:56]} {[%emt 00:23:46]} 14. Bxf6 {[%clk 01:21:17]} {[%emt 00:07:24]} dxe4
{[%clk 00:43:52]} {[%emt 00:01:35]} 15. Nxe4 {[%clk 01:20:31]} {[%emt
00:01:15]} Bxe4 {[%clk 00:43:41]} {[%emt 00:00:42]} 16. Qxe4 {[%clk 01:20:55]}
{[%emt 00:00:06]} gxf6 {[%clk 00:43:54]} {[%emt 00:00:17]} 17. a4 {[%clk
01:14:22]} {[%emt 00:07:03]} f5 {[%clk 00:23:26]} {[%emt 00:20:58]} 18. Qd4
{[%clk 01:10:49]} {[%emt 00:04:03]} Rg8 {[%clk 00:23:21]} {[%emt 00:00:35]} 19.
axb5 {[%clk 01:05:29]} {[%emt 00:05:50]} Bc5 {[%clk 00:23:40]} {[%emt
00:00:10]} 20. Qa4 {[%clk 01:05:12]} {[%emt 00:00:48]} axb5 {[%clk 00:22:38]}
{[%emt 00:01:32]} 21. Qxb5+ {[%clk 00:47:41]} {[%emt 00:18:00]} Ke7 {[%clk
00:22:53]} {[%emt 00:00:15]} 22. Qa4 {[%clk 00:40:42]} {[%emt 00:07:29]} Qb7
{[%clk 00:19:44]} {[%emt 00:03:40]} 23. Qh4+ {[%clk 00:38:08]} {[%emt
00:03:04]} Ke8 {[%clk 00:18:11]} {[%emt 00:02:02]} 24. Qh3 {[%clk 00:27:22]}
{[%emt 00:11:17]} Qxb2 {[%clk 00:14:39]} {[%emt 00:04:02]} 25. Rab1 {[%clk
00:26:11]} {[%emt 00:01:41]} Qxc2 {[%clk 00:13:41]} {[%emt 00:01:28]} 26. Qxh7
{[%clk 00:24:29]} {[%emt 00:02:12]} Kf8 {[%clk 00:05:05]} {[%emt 00:09:06]} 27.
Rb7 {[%clk 00:20:13]} {[%emt 00:04:46]} Be7 {[%clk 00:04:42]} {[%emt 00:00:53]}
28. Bh5 {[%clk 00:19:42]} {[%emt 00:01:00]} Rg7 {[%clk 00:04:12]} {[%emt
00:01:01]} 29. Qh8+ {[%clk 00:20:07]} {[%emt 00:00:05]} Rg8 {[%clk 00:04:37]}
{[%emt 00:00:05]} 30. Qh6+ {[%clk 00:19:50]} {[%emt 00:00:46]} Ke8 {[%clk
00:04:27]} {[%emt 00:00:40]} 31. g3 {[%clk 00:08:22]} {[%emt 00:11:58]} Rd8
{[%clk 00:00:35]} {[%emt 00:04:23]} 32. Bxf7+ {[%clk 00:08:03]} {[%emt
00:00:48]} Kxf7 {[%clk 00:00:49]} {[%emt 00:00:16]} 33. Qh7+ {[%clk 00:08:29]}
{[%emt 00:00:04]} Kf6 {[%clk 00:00:40]} {[%emt 00:00:38]} 34. Qxe7+ {[%clk
00:08:48]} {[%emt 00:00:12]} Ke5 {[%clk 00:00:34]} {[%emt 00:00:36]} 35. Rb5+
{[%clk 00:09:06]} {[%emt 00:00:13]} Kd5 {[%emt 00:00:26]} 1-0

[Event "IV Elllobregat Open Chess Tmnt"]
[Site "Sant Boi de Llobregat, Spain"]
[Date "2023.11.30"]
[Round "1.49"]
[White "Rakshitta, Ravi"]
[Black "Martinez Ramirez, Lennis"]
[Result "1/2-1/2"]
[TimeControl "90min/40moves + 15min/end + 30sec from move 1"]
[WhiteFideId "25073230"]
[BlackFideId "3509079"]
[WhiteElo "2245"]
[BlackElo "2461"]

1. e4 {[%clk 01:30:58]} {[%emt 00:00:02]} c5 {[%clk 01:26:05]} {[%emt
00:04:55]} 2. Nf3 {[%clk 01:29:52]} {[%emt 00:01:35]} d6 {[%clk 01:25:22]}
{[%emt 00:01:13]} 3. d4 {[%clk 01:29:58]} {[%emt 00:00:24]} cxd4 {[%clk
01:25:46]} {[%emt 00:00:06]} 4. Nxd4 {[%clk 01:30:24]} {[%emt 00:00:04]} Nf6
{[%clk 01:26:10]} {[%emt 00:00:05]} 5. Nc3 {[%clk 01:30:49]} {[%emt 00:00:05]}
a6 {[%clk 01:26:32]} {[%emt 00:00:07]} 6. g3 {[%clk 01:31:07]} {[%emt
00:00:13]} e5 {[%clk 01:25:23]} {[%emt 00:01:40]} 7. Nde2 {[%clk 01:31:30]}
{[%emt 00:00:07]} b5 {[%clk 01:25:14]} {[%emt 00:00:38]} 8. Bg2 {[%clk
01:31:37]} {[%emt 00:00:22]} h6 {[%clk 01:25:24]} {[%emt 00:00:20]} 9. Nd5
{[%clk 01:31:02]} {[%emt 00:01:05]} Nxd5 {[%clk 01:25:38]} {[%emt 00:00:16]} 10.
Qxd5 {[%clk 01:30:09]} {[%emt 00:01:23]} Ra7 {[%clk 01:26:00]} {[%emt
00:00:08]} 11. Be3 {[%clk 01:29:04]} {[%emt 00:01:35]} Be6 {[%clk 01:26:14]}
{[%emt 00:00:16]} 12. Qd2 {[%clk 01:27:53]} {[%emt 00:01:40]} Rb7 {[%clk
01:26:03]} {[%emt 00:00:42]} 13. f4 {[%clk 01:22:52]} {[%emt 00:05:31]} Nd7
{[%clk 01:24:54]} {[%emt 00:01:39]} 14. f5 {[%clk 00:58:44]} {[%emt 00:24:38]}
Bc4 {[%clk 01:25:13]} {[%emt 00:00:10]} 15. b3 {[%clk 00:56:03]} {[%emt
00:03:12]} Bxe2 {[%clk 01:25:35]} {[%emt 00:00:07]} 16. Qxe2 {[%clk 00:56:32]}
{[%emt 00:00:02]} Be7 {[%clk 01:25:03]} {[%emt 00:01:02]} 17. O-O {[%clk
00:55:36]} {[%emt 00:01:27]} O-O {[%clk 01:24:38]} {[%emt 00:00:54]} 18. a4
{[%clk 00:55:32]} {[%emt 00:00:34]} Qc7 {[%clk 01:23:47]} {[%emt 00:01:22]} 19.
axb5 {[%clk 00:54:21]} {[%emt 00:01:42]} axb5 {[%clk 01:24:10]} {[%emt
00:00:06]} 20. Ra2 {[%clk 00:49:15]} {[%emt 00:05:37]} Rc8 {[%clk 01:21:53]}
{[%emt 00:02:47]} 21. Rfa1 {[%clk 00:48:36]} {[%emt 00:01:08]} Bg5 {[%clk
01:21:43]} {[%emt 00:00:39]} 22. Bf2 {[%clk 00:48:35]} {[%emt 00:00:31]} Bd8
{[%clk 01:18:17]} {[%emt 00:03:57]} 23. Ra8 {[%clk 00:43:18]} {[%emt 00:05:47]}
Nf6 {[%clk 01:14:38]} {[%emt 00:04:09]} 24. R1a6 {[%clk 00:31:40]} {[%emt
00:12:08]} Rbb8 {[%clk 01:06:40]} {[%emt 00:08:28]} 25. Rxb8 {[%clk 00:30:21]}
{[%emt 00:01:50]} Rxb8 {[%clk 01:07:05]} {[%emt 00:00:05]} 26. Qd3 {[%clk
00:28:56]} {[%emt 00:01:55]} Ng4 {[%clk 01:04:59]} {[%emt 00:02:36]} 27. Rxd6
{[%clk 00:25:45]} {[%emt 00:03:41]} Nxf2 {[%clk 01:01:50]} {[%emt 00:03:39]} 28.
Kxf2 {[%clk 00:26:14]} {[%emt 00:00:02]} Qc5+ {[%clk 01:02:12]} {[%emt
00:00:07]} 29. Kf3 {[%clk 00:23:29]} {[%emt 00:03:15]} Bb6 {[%clk 01:01:32]}
{[%emt 00:01:10]} 30. Kg4 {[%clk 00:22:53]} {[%emt 00:01:06]} Rc8 {[%clk
01:01:02]} {[%emt 00:01:00]} 31. Kh3 {[%clk 00:17:04]} {[%emt 00:06:18]} h5
{[%clk 00:39:15]} {[%emt 00:22:17]} 32. c3 {[%clk 00:12:43]} {[%emt 00:04:52]}
b4 {[%clk 00:35:36]} {[%emt 00:04:09]} 33. cxb4 {[%clk 00:08:23]} {[%emt
00:04:50]} Qxb4 {[%clk 00:35:46]} {[%emt 00:00:19]} 34. Qa6 {[%clk 00:07:30]}
{[%emt 00:01:22]} Rb8 {[%clk 00:34:29]} {[%emt 00:01:48]} 35. Rc6 {[%clk
00:05:21]} {[%emt 00:02:39]} Qxb3 {[%clk 00:32:26]} {[%emt 00:02:32]} 36. Rc8+
{[%clk 00:05:47]} {[%emt 00:00:03]} Rxc8 {[%clk 00:32:50]} {[%emt 00:00:06]} 37.
Qxc8+ {[%clk 00:06:13]} {[%emt 00:00:04]} Kh7 {[%clk 00:33:17]} {[%emt
00:00:03]} 38. f6 {[%clk 00:06:17]} {[%emt 00:00:26]} g5 {[%clk 00:20:05]}
{[%emt 00:13:41]} 39. Qf5+ {[%clk 00:03:29]} {[%emt 00:03:18]} Kh6 {[%clk
00:20:28]} {[%emt 00:00:07]} 40. Bf3 {[%clk 00:16:54]} {[%emt 00:02:06]} Qxf3
{[%clk 00:35:14]} {[%emt 00:00:44]} 41. Qh7+ {[%clk 00:17:12]} {[%emt
00:00:12]} Kxh7 {[%clk 00:30:38]} {[%emt 00:05:05]} 1/2-1/2